bitfinex/quotes_SOLUSD_20250731
["timestamp","ask_amount","ask_price","bid_price","bid_amount"]
[1753980685908,0.67,178.98,178.94,137.79504385]
[1753980686110,1e-08,179.01,178.96,9.63504385]
[1753980686296,1e-08,179.01,178.97,50.29379671]
[1753980686687,0.67000001,179.01,178.97,50.29379671]
[1753980687013,1e-08,179.01,178.97,50.29379671]
[1753980687214,0.67000001,179.01,178.97,50.29379671]
[1753980687386,0.67000001,179.01,178.97,40.65875286]
[1753980687590,0.67000001,179.01,178.97,50.29379671]
[1753980687990,15.89138628,179.01,178.97,40.65875286]
[1753980688212,15.89138628,179.01,178.97,40.1]
[1753980688616,10.30504385,179.0,178.97,40.1]
[1753980689234,9.63504385,178.98,178.97,40.1]
[1753980689603,10.30504385,178.98,178.97,40.1]
[1753980689798,6.25721644,178.98,178.97,40.1]
[1753980690003,15.89226029,178.98,178.97,40.1]
[1753980690206,15.89226029,178.98,178.96,88.0]
[1753980690504,10.30504385,178.97,178.94,40.16]
[1753980690837,26.41972782,178.95,178.94,0.06]
[1753980691137,30.16753764,178.95,178.94,0.06]
[1753980691313,30.83753764,178.95,178.92,0.06]
[1753980691512,26.41972782,178.93,178.92,0.06]
[1753980691925,32.67850555,178.93,178.92,0.06]
[1753980693542,15.89382158,178.93,178.92,0.06]
[1753980695128,32.67850555,178.93,178.92,0.06]
[1753980696813,32.00850555,178.93,178.92,0.06]
[1753980697331,9.63504385,178.93,178.92,0.06]
[1753980697509,15.22382158,178.93,178.92,0.06]
[1753980698033,15.90382158,178.93,178.92,0.06]
[1753980698348,15.90382158,178.93,178.86,88.0]
[1753980698349,16.78468397,178.87,178.86,88.0]
[1753980698643,27.09972782,178.87,178.8,40.1]
[1753980698822,9.63504385,178.81,178.8,128.1]
[1753980699024,9.63504385,178.83,178.8,128.1]
[1753980700435,15.22703686,178.83,178.8,128.1]
[1753980700736,9.63504385,178.83,178.8,128.44]
[1753980701031,15.22695004,178.83,178.8,128.44]
[1753980701232,9.63504385,178.82,178.8,128.44]
[1753980701418,13.97445359,178.9,178.81,0.34]
[1753980701622,9.63504385,178.84,178.81,88.34]
[1753980702023,9.63504385,178.83,178.81,88.34]
[1753980702432,9.63504385,178.85,178.81,88.0]
[1753980702623,9.63504385,178.85,178.82,40.44]
[1753980703006,9.63504385,178.84,178.82,40.1]
[1753980703222,32.27060747,178.88,178.82,40.1]
[1753980703420,9.63504385,178.85,178.82,128.44]
[1753980703623,9.63504385,178.85,178.82,128.1]
[1753980703938,16.78468397,178.9,178.83,0.34]
[1753980704142,5.58909009,178.92,178.87,9.63504385]
[1753980704344,9.63504385,178.91,178.88,40.1]
[1753980704514,15.22453656,178.91,178.88,40.1]
[1753980705741,15.90453656,178.91,178.88,40.1]
[1753980706039,10.31504385,178.91,178.88,40.1]
[1753980706518,0.68,178.91,178.88,40.1]
[1753980706726,10.31504385,178.91,178.88,40.1]
[1753980707125,22.37354881,178.93,178.88,40.1]
[1753980707428,32.68859266,178.93,178.88,49.73504385]
[1753980708337,26.0,178.94,178.88,46.24932418]
[1753980708529,26.0,178.94,178.9,9.63504385]
[1753980708847,31.58846714,178.94,178.91,40.1]
[1753980709061,41.90351099,178.94,178.91,40.1]
[1753980709357,36.31504385,178.94,178.91,40.1]
[1753980709723,36.31504385,178.94,178.91,128.1]
[1753980710048,26.71,178.94,178.91,128.1]
[1753980710849,0.71,178.94,178.91,128.1]
[1753980711751,15.25357434,178.94,178.91,88.0]
[1753980711922,10.31504385,178.93,178.91,128.1]
[1753980712437,0.68,178.93,178.91,128.1]
[1753980713619,10.31504385,178.93,178.91,128.1]
[1753980714741,10.31504385,178.92,178.91,88.0]
[1753980715449,15.90413394,178.92,178.91,88.0]
[1753980715950,6.26909009,178.92,178.91,88.0]
[1753980716249,15.90413394,178.92,178.91,88.0]
[1753980716847,32.00881791,178.92,178.91,88.0]
[1753980717156,32.68881791,178.92,178.89,40.1]
[1753980717334,9.63504385,178.9,178.89,40.1]
[1753980717660,10.31504385,178.9,178.89,88.0]
[1753980718353,27.09972782,178.9,178.89,88.0]
[1753980719258,32.68944274,178.9,178.89,88.0]
[1753980720322,0.68,178.9,178.89,88.0]
[1753980720527,16.825902,178.94,178.89,97.63504385]
[1753980720854,22.41443915,178.94,178.9,49.73504385]
[1753980721243,5.61853715,178.94,178.9,49.73504385]
[1753980721554,15.933581,178.94,178.9,40.1]
[1753980721739,6.29853715,178.94,178.9,40.1]
[1753980721945,15.933581,178.94,178.9,40.1]
[1753980722348,15.253581,178.94,178.9,40.1]
[1753980722650,15.933581,178.94,178.9,40.1]
[1753980723037,0.03,178.94,178.91,9.63504385]
[1753980723239,0.03,178.94,178.92,40.08]
[1753980724550,0.03,178.94,178.92,50.05504385]
[1753980724752,0.03,178.94,178.92,40.42]
[1753980724953,0.03,178.94,178.92,40.08]
[1753980726358,0.03,178.94,178.92,128.08]
[1753980726857,0.74,178.94,178.92,88.0]
[1753980727158,0.03,178.94,178.93,40.08]
[1753980727360,0.03,178.94,178.93,128.08]
[1753980730739,0.03,178.94,178.93,138.05504385]
[1753980731541,0.03,178.94,178.93,143.64382158]
[1753980731874,0.03,178.94,178.93,138.05504385]
[1753980732843,0.03,178.94,178.93,139.91614561]
[1753980734749,1e-08,179.01,178.96,87.91]
[1753980734945,1e-08,179.01,178.99,5.90736788]
[1753980735239,1e-08,179.01,179.0,40.06]
[1753980735442,1e-08,179.01,179.0,127.97]
[1753980735870,0.71000001,179.01,179.0,127.97]
[1753980736368,1e-08,179.01,179.0,127.97]
[1753980737266,0.71000001,179.01,179.0,127.97]
[1753980737650,1e-08,179.01,179.0,127.97]
[1753980737968,1e-08,179.01,179.0,137.59183532]
[1753980738268,1e-08,179.01,179.0,143.51842749]
[1753980741266,0.71000001,179.01,179.0,127.97]
[1753980741469,1e-08,179.01,179.0,137.59183532]
[1753980741647,1e-08,179.01,179.0,137.93183532]
[1753980742366,1e-08,179.01,179.0,137.59183532]
[1753980743671,1e-08,179.01,179.0,143.51842749]
[1753980743873,1e-08,179.01,179.0,169.51842749]
[1753980744167,5.6136784,179.1,179.07,9.62183532]
[1753980744341,0.74,179.1,179.08,40.04]
[1753980744547,0.03,179.1,179.08,50.22024496]
[1753980744956,0.03,179.1,179.09,9.62183532]
[1753980746074,0.03,179.1,179.09,97.50183532]
[1753980746574,0.03,179.1,179.09,98.06021378]
[1753980748750,0.03,179.1,179.09,98.40021378]
[1753980748965,0.03,179.1,179.09,103.98399846]
[1753980751681,0.2,179.14,179.13,87.42]
[1753980751877,0.2,179.14,179.13,137.6200891]
[1753980752060,0.2,179.14,179.13,127.44]
[1753980753449,0.2,179.14,179.13,137.06183532]
[1753980754659,0.2,179.14,179.13,133.02253782]
[1753980754865,0.2,179.14,179.13,127.44]
[1753980755168,0.2,179.14,179.13,133.08253782]
[1753980755558,0.2,179.14,179.13,127.5]
[1753980755963,0.2,179.14,179.13,137.12183532]
[1753980756966,0.2,179.14,179.13,142.70437314]
[1753980757561,0.2,179.14,179.13,137.12183532]
[1753980758798,0.2,179.14,179.13,133.39391732]
[1753980759082,0.2,179.14,179.13,127.5]
[1753980759280,0.87,179.14,179.13,127.48]
[1753980759764,0.87,179.14,179.13,133.37391732]
[1753980759765,0.2,179.14,179.13,133.37391732]
[1753980759968,0.2,179.14,179.13,138.95645514]
[1753980760354,0.2,179.14,179.13,87.48]
[1753980760556,0.87,179.14,179.13,127.48]
[1753980760958,0.87,179.14,179.13,87.48]
[1753980761163,12.34614351,179.14,179.13,87.48]
[1753980761380,12.34614351,179.14,179.13,127.48]
[1753980762662,6.45222619,179.14,179.13,127.48]
[1753980762862,12.34614351,179.14,179.13,127.48]
[1753980763264,6.76391732,179.14,179.13,127.48]
[1753980763570,0.2,179.14,179.13,127.48]
[1753980763871,12.34614351,179.14,179.13,87.48]
[1753980764078,12.34614351,179.14,179.13,127.48]
[1753980765484,0.2,179.14,179.13,127.48]
[1753980769467,12.34614351,179.14,179.13,87.48]
[1753980769659,12.34614351,179.14,179.13,127.46]
[1753980771084,55.13082748,179.14,179.13,0.06]
[1753980771689,42.78468397,179.12,179.11,0.06]
[1753980771890,48.67860129,179.12,179.11,0.06]
[1753980772075,49.34860129,179.12,179.11,0.06]
[1753980772971,16.78468397,179.11,179.07,87.42]
[1753980773284,28.26269778,179.08,179.07,87.42]
[1753980773474,28.93269778,179.08,179.07,87.42]
[1753980778371,28.93269778,179.08,179.07,91.480872]
[1753980778568,32.67294978,179.08,179.07,4.060872]
[1753980779872,49.45569678,179.08,179.07,4.060872]
[1753980782697,53.6156783,179.08,179.07,4.060872]
[1753980782896,49.45569678,179.08,179.07,4.060872]
[1753980783077,53.61574542,179.08,179.07,4.060872]
[1753980783476,49.45569678,179.08,179.07,4.060872]
[1753980786800,11.47801381,179.08,179.07,4.060872]
[1753980787191,12.19801381,179.08,179.07,4.060872]
[1753980787515,32.7300793,179.08,179.07,4.060872]
[1753980789000,28.26269778,179.08,179.07,4.060872]
[1753980789503,28.98269778,179.08,179.07,4.060872]
[1753980789801,23.08878046,179.08,179.07,4.060872]
[1753980789975,32.73009676,179.08,179.07,4.060872]
[1753980790176,28.98269778,179.08,179.07,4.060872]
[1753980790577,28.26269778,179.08,179.07,4.060872]
[1753980791808,28.98269778,179.08,179.07,4.060872]
[1753980792381,45.76450578,179.08,179.07,4.060872]
[1753980792681,28.26269778,179.08,179.07,4.060872]
[1753980794084,28.98269778,179.08,179.07,4.060872]
[1753980794606,42.781809,179.09,179.07,4.060872]
[1753980794607,16.781809,179.09,179.07,4.060872]
[1753980794899,5.58370167,179.1,179.07,131.800872]
[1753980795107,11.47761899,179.1,179.07,131.460872]
[1753980795275,5.89391732,179.09,179.08,39.96]
[1753980795685,5.89391732,179.1,179.08,39.96]
[1753980796087,11.4770785,179.11,179.08,39.96]
[1753980797202,11.4774173,179.1,179.08,39.96]
[1753980797585,5.89391732,179.1,179.08,39.96]
[1753980797794,11.47715631,179.11,179.08,39.96]
[1753980798291,11.50715631,179.11,179.08,39.96]
[1753980798796,0.03,179.11,179.09,6.23391732]
[1753980798998,0.03,179.11,179.1,39.96]
[1753980799296,0.03,179.11,179.1,46.75226461]
[1753980799495,0.03,179.11,179.1,52.33573753]
[1753980799701,0.03,179.13,179.11,87.42]
[1753980799911,0.03,179.13,179.12,46.41220226]
[1753980800205,0.03,179.13,179.12,46.72220226]
[1753980801007,0.03,179.13,179.12,40.51828494]
[1753980801211,0.03,179.13,179.12,39.96]
[1753980801780,0.03,179.13,179.12,46.72220226]
[1753980801990,0.03,179.13,179.12,52.30505174]
[1753980804887,0.2,179.17,179.16,87.16]
[1753980805089,0.2,179.17,179.16,133.55207762]
[1753980805296,0.2,179.17,179.16,133.30391732]
[1753980805497,0.2,179.17,179.16,138.88552035]
[1753980807089,0.2,179.17,179.16,287.68552035]
[1753980807591,0.2,179.17,179.16,98.63552035]
[1753980807792,0.2,179.17,179.16,132.99391732]
[1753980808210,0.2,179.17,179.16,133.30391732]
[1753980808510,0.2,179.17,179.16,138.88552035]
[1753980808827,0.2,179.19,179.18,26.0]
[1753980809000,0.03,179.22,179.18,78.28593264]
[1753980809204,0.03,179.22,179.21,5.89391732]
[1753980809522,0.03,179.22,179.21,6.45192189]
[1753980809823,0.75,179.22,179.19,0.55806685]
[1753980810016,0.75,179.22,179.2,39.92]
[1753980810325,0.03,179.22,179.21,6.45192189]
[1753980810797,0.75,179.22,179.21,5.89391732]
[1753980811123,5.58004575,179.21,179.18,93.05391732]
[1753980811305,6.30004575,179.21,179.19,39.92]
[1753980811805,6.30004575,179.21,179.19,45.81391732]
[1753980812116,5.60975499,179.22,179.19,46.37198417]
[1753980812320,0.03,179.22,179.21,5.89391732]
[1753980812507,0.03,179.22,179.21,39.92]
[1753980815004,0.03,179.22,179.21,127.08]
[1753980816009,0.68,179.22,179.21,127.08]
[1753980817223,0.03,179.22,179.21,127.08]
[1753980818224,0.03,179.22,179.21,132.97391732]
[1753980819616,0.03,179.22,179.21,127.08]
[1753980819811,0.03,179.22,179.21,133.08391732]
[1753980820042,0.03,179.22,179.21,138.66396307]
[1753980820407,0.03,179.22,179.21,287.46396307]
[1753980820721,0.03,179.24,179.22,87.13]
[1753980820908,0.03,179.24,179.23,46.35185962]
[1753980821108,0.03,179.24,179.23,133.48185962]
[1753980821309,0.03,179.24,179.23,132.92391732]
[1753980822535,0.03,179.24,179.23,138.6133404]
[1753980824122,0.03,179.24,179.23,87.13]
[1753980824321,0.68,179.24,179.23,87.13]
[1753980824527,0.68,179.24,179.23,127.01]
[1753980824728,0.03,179.24,179.23,132.90391732]
[1753980826117,0.03,179.24,179.23,138.5933404]
[1753980826717,0.03,179.24,179.23,138.4833404]
[1753980829238,0.03,179.24,179.23,132.90391732]
[1753980829544,0.03,179.24,179.23,138.4833404]
[1753980830118,0.03,179.24,179.23,93.02391732]
[1753980830324,0.03,179.24,179.23,132.90391732]
[1753980831627,0.68,179.24,179.23,132.90391732]
[1753980831829,0.68,179.24,179.23,87.13]
[1753980832038,0.68,179.24,179.23,126.99]
[1753980832834,6.2591118,179.24,179.23,126.99]
[1753980834622,0.03,179.24,179.23,132.88391732]
[1753980835321,0.03,179.24,179.23,287.2633404]
[1753980835637,0.03,179.24,179.23,287.3733404]
[1753980837715,0.03,179.26,179.24,113.1]
[1753980837917,0.03,179.26,179.25,46.31179737]
[1753980838343,0.68,179.26,179.25,40.41788005]
[1753980838644,0.68,179.26,179.25,126.96]
[1753980840837,0.03,179.26,179.25,132.85391732]
[1753980841142,0.03,179.26,179.25,287.23271787]
[1753980841325,0.2,179.28,179.27,26.0]
[1753980841525,0.2,179.28,179.27,314.10565245]
[1753980841725,0.2,179.28,179.27,307.65391732]
[1753980841927,0.2,179.28,179.27,313.65783464]
[1753980842433,0.2,179.28,179.27,313.54783464]
[1753980842744,0.2,179.29,179.28,16.78468397]
[1753980842938,0.65,179.36,179.34,92.27588858]
[1753980843133,0.65,179.36,179.35,45.73391732]
[1753980843623,0.2,179.37,179.35,45.73391732]
[1753980843825,5.89391732,179.36,179.34,85.98]
[1753980844020,11.66898821,179.37,179.34,125.82]
[1753980844243,0.67,179.36,179.35,6.45148631]
[1753980844430,0.67,179.36,179.35,46.29148631]
[1753980844927,0.67,179.36,179.35,132.27148631]
[1753980845237,0.67,179.36,179.35,131.71391732]
[1753980845441,0.67,179.36,179.35,125.82]
[1753980846031,0.67,179.36,179.35,131.71391732]
[1753980846948,0.67,179.36,179.35,125.82]
[1753980847247,0.67,179.36,179.35,131.71391732]
[1753980847433,0.2,179.37,179.35,137.28952077]
[1753980847635,0.2,179.37,179.36,6.45145523]
[1753980849156,0.87,179.37,179.35,131.71391732]
[1753980849458,0.87,179.37,179.36,5.89391732]
[1753980849758,0.67,179.36,179.35,131.71391732]
[1753980852026,0.2,179.37,179.35,131.71391732]
[1753980852230,0.87,179.37,179.35,131.71391732]
[1753980852534,0.2,179.37,179.35,125.82]
[1753980852730,0.2,179.37,179.35,131.71391732]
[1753980853126,0.2,179.37,179.36,6.45145523]
[1753980853351,0.2,179.37,179.36,91.87391732]
[1753980853559,0.2,179.37,179.36,92.43145523]
[1753980854530,0.87,179.42,179.38,85.78]
[1753980854728,0.87,179.42,179.39,46.27136199]
[1753980854957,0.2,179.42,179.39,45.71391732]
[1753980855128,0.67,179.41,179.39,45.71391732]
[1753980855338,0.67,179.4,179.39,39.82]
[1753980855837,6.56391732,179.4,179.38,85.78]
[1753980856042,5.89391732,179.39,179.38,85.78]
[1753980856245,6.56391732,179.39,179.38,125.6]
[1753980857058,6.24444673,179.39,179.38,125.6]
[1753980857552,0.67,179.41,179.38,131.49391732]
[1753980857852,0.67,179.41,179.39,5.89391732]
[1753980858052,0.67,179.41,179.4,39.8]
[1753980858951,5.77356846,179.42,179.4,39.8]
[1753980859459,0.2,179.42,179.41,5.89391732]
[1753980859633,0.2,179.42,179.41,6.58391732]
[1753980859835,0.2,179.42,179.41,92.23129985]
[1753980861955,0.2,179.42,179.41,97.80512516]
[1753980862346,0.2,179.42,179.41,98.49512516]
[1753980863149,0.2,179.42,179.41,247.29512516]
[1753980863355,0.2,179.42,179.41,246.73774263]
[1753980863742,0.2,179.42,179.41,97.93774263]
[1753980863941,0.2,179.42,179.41,98.49512516]
[1753980864257,0.2,179.42,179.41,247.29512516]
[1753980864471,6.24109718,179.5,179.42,85.58]
[1753980864764,6.24109718,179.5,179.47,5.89391732]
[1753980864969,0.67,179.5,179.48,39.8]
[1753980865567,0.67,179.5,179.48,40.35716514]
[1753980865880,5.57079906,179.51,179.48,40.35716514]
[1753980866169,0.67,179.5,179.48,39.8]
[1753980866381,0.67,179.49,179.48,39.8]
[1753980866549,0.67,179.5,179.48,39.8]
[1753980866753,5.57079906,179.51,179.48,39.8]
[1753980866953,6.24079906,179.51,179.48,39.8]
[1753980867157,6.24076984,179.51,179.48,125.38]
[1753980867471,5.57076984,179.51,179.48,125.38]
[1753980867637,0.67,179.5,179.48,125.38]
[1753980867844,6.24076984,179.51,179.48,125.38]
[1753980868171,5.57046938,179.52,179.48,131.96391732]
[1753980868365,6.24046938,179.52,179.48,131.27391732]
[1753980868854,11.46411829,179.53,179.48,131.96391732]
[1753980869042,6.24020097,179.53,179.49,5.89391732]
[1753980869350,5.57020097,179.53,179.5,39.78]
[1753980869551,0.67,179.53,179.5,39.78]
[1753980869771,11.56374415,179.54,179.5,39.78]
[1753980869937,5.66982683,179.54,179.51,6.58391732]
[1753980870144,0.1,179.54,179.52,39.78]
[1753980870343,0.77,179.54,179.52,39.78]
[1753980870949,0.77,179.54,179.52,125.36]
[1753980871146,6.33982285,179.54,179.52,125.36]
[1753980872066,0.1,179.54,179.52,131.25391732]
[1753980872267,0.1,179.54,179.53,5.89391732]
[1753980872763,0.1,179.54,179.52,40.47]
[1753980872968,0.1,179.54,179.53,5.89391732]
[1753980874039,0.1,179.54,179.53,92.16391732]
[1753980874267,0.1,179.54,179.53,91.47391732]
[1753980874744,0.1,179.54,179.53,92.16391732]
[1753980875364,0.1,179.54,179.53,92.03092729]
[1753980875566,0.1,179.54,179.53,125.34]
[1753980876364,0.1,179.54,179.53,131.92391732]
[1753980876576,0.1,179.54,179.53,137.49401702]
[1753980876964,0.1,179.54,179.53,131.92391732]
[1753980877160,0.1,179.54,179.53,131.23391732]
[1753980877383,0.1,179.54,179.53,45.65391732]
[1753980877550,0.1,179.54,179.53,52.47102699]
[1753980878087,0.1,179.54,179.53,140.47102699]
[1753980878272,0.1,179.54,179.53,288.71401702]
[1753980879153,5.89391732,179.66,179.57,26.0]
[1753980879359,12.13056146,179.65,179.6,5.89391732]
[1753980879566,12.13056146,179.65,179.61,39.74]
[1753980879567,11.46056146,179.65,179.61,39.74]
[1753980879764,0.67,179.64,179.6,5.89391732]
[1753980879976,0.67,179.64,179.61,39.74]
[1753980879977,5.89391732,179.62,179.61,39.74]
[1753980880385,0.67,179.62,179.61,39.74]
[1753980881364,0.67,179.64,179.61,39.74]
[1753980881684,0.67,179.64,179.61,45.63391732]
[1753980882054,0.67,179.63,179.61,39.74]
[1753980883663,6.56391732,179.65,179.61,39.74]
[1753980884063,0.67,179.64,179.61,39.74]
[1753980884754,5.89391732,179.65,179.61,42.46582284]
[1753980884950,6.23544968,179.68,179.63,5.89391732]
[1753980885175,0.67,179.67,179.64,39.72]
[1753980885384,0.67,179.7,179.65,6.45055522]
[1753980885554,0.67,179.69,179.66,39.72]
[1753980886164,0.67,179.68,179.64,5.89391732]
[1753980886375,5.89391732,179.66,179.65,39.72]
[1753980886860,0.67,179.66,179.65,39.72]
[1753980887084,5.89391732,179.67,179.65,39.72]
[1753980887254,6.56391732,179.67,179.65,39.72]
[1753980887765,6.23606924,179.66,179.61,2.72582284]
[1753980887955,5.89391732,179.64,179.61,0.55676187]
[1753980888159,5.89391732,179.64,179.62,39.72]
[1753980888379,6.56391732,179.63,179.6,0.55679287]
[1753980888570,5.89391732,179.65,179.61,39.72]
[1753980888879,5.56606924,179.66,179.62,0.55673087]
[1753980889058,11.45998656,179.66,179.63,39.72]
[1753980889254,5.89391732,179.67,179.63,39.72]
[1753980889585,5.89391732,179.7,179.65,5.89391732]
[1753980889784,37.45893483,179.7,179.66,40.25660692]
[1753980890078,31.89391732,179.7,179.66,40.25660692]
[1753980890274,37.45877434,179.7,179.66,40.25660692]
[1753980890473,38.12877434,179.7,179.66,40.25660692]
[1753980890784,6.56391732,179.69,179.66,40.25660692]
[1753980891480,6.56391732,179.68,179.66,39.7]
[1753980891901,5.56575944,179.67,179.66,39.7]
[1753980892069,12.12967676,179.67,179.66,39.7]
[1753980892273,12.12967676,179.67,179.62,87.9]
[1753980892484,5.89391732,179.64,179.63,39.7]
[1753980892869,6.56391732,179.64,179.63,39.7]
[1753980893593,0.67,179.64,179.63,39.7]
[1753980893887,12.13060625,179.64,179.63,39.7]
[1753980894392,0.67,179.67,179.63,39.7]
[1753980894601,5.89391732,179.66,179.63,39.7]
[1753980894897,11.45939045,179.68,179.64,1.24666889]
[1753980895099,11.45939045,179.68,179.65,39.7]
[1753980895402,26.0,179.7,179.65,39.7]
[1753980895403,31.56510178,179.7,179.66,0.55660692]
[1753980895568,37.4590191,179.7,179.67,39.7]
[1753980895969,5.89391732,179.68,179.63,5.89391732]
[1753980896204,5.89391732,179.67,179.64,40.39]
[1753980896380,6.56391732,179.67,179.64,43.748213]
[1753980896566,6.56391732,179.67,179.64,4.048213]
[1753980896880,0.67,179.67,179.65,39.7]
[1753980897195,10.22262662,179.67,179.65,39.7]
[1753980897568,10.22262662,179.66,179.64,4.048213]
[1753980897767,10.22262662,179.65,179.64,4.048213]
[1753980897968,15.78900569,179.65,179.64,4.048213]
[1753980898376,9.55262662,179.65,179.64,4.048213]
[1753980898778,9.55262662,179.66,179.64,4.048213]
[1753980899381,10.22262662,179.66,179.64,4.048213]
[1753980899581,9.55262662,179.65,179.64,4.048213]
[1753980899873,9.55262662,179.66,179.64,4.048213]
[1753980900090,9.55262662,179.67,179.64,4.048213]
[1753980900290,9.55262662,179.65,179.64,4.048213]
[1753980900570,10.22262662,179.65,179.64,4.048213]
[1753980902070,15.78900569,179.65,179.64,4.048213]
[1753980902733,32.57368966,179.65,179.64,4.048213]
[1753980903402,49.96142881,179.65,179.64,4.048213]
[1753980903606,40.40880219,179.65,179.64,4.048213]
[1753980904696,23.02106304,179.65,179.64,4.048213]
[1753980904878,40.4149888,179.65,179.64,4.048213]
[1753980905795,40.4149888,179.65,179.64,1e-08]
[1753980906294,44.5473388,179.65,179.64,1e-08]
[1753980906892,54.09996542,179.65,179.64,1e-08]
[1753980907092,16.78468397,179.64,179.59,87.9]
[1753980907404,9.55262662,179.6,179.59,87.9]
[1753980907607,10.23262662,179.6,179.59,87.9]
[1753980908100,15.80055535,179.6,179.59,87.9]
[1753980908706,15.12055535,179.6,179.59,87.9]
[1753980909890,16.78468397,179.65,179.59,88.56]
[1753980910118,9.55262662,179.61,179.6,39.68]
[1753980910406,14.37534977,179.61,179.59,39.68]
[1753980910607,9.55262662,179.6,179.59,39.68]
[1753980912087,9.55262662,179.61,179.59,40.34]
[1753980912503,9.55262662,179.62,179.59,39.68]
[1753980912727,9.55262662,179.63,179.6,0.66]
[1753980912898,9.55262662,179.64,179.61,0.66]
[1753980913223,17.43413709,179.63,179.62,39.68]
[1753980914616,15.11962545,179.63,179.62,39.68]
[1753980914815,23.00817612,179.63,179.62,39.68]
[1753980915117,16.78468397,179.62,179.61,88.0]
[1753980915321,34.90595308,179.62,179.61,88.0]
[1753980915799,39.05946736,179.62,179.61,88.0]
[1753980916210,23.00857787,179.62,179.61,88.0]
[1753980916418,23.00857787,179.62,179.61,127.68]
[1753980916801,19.32194762,179.62,179.61,127.68]
[1753980917896,5.86599637,179.65,179.61,128.34]
[1753980918094,3.74061544,179.64,179.62,0.66]
[1753980918314,3.74061544,179.64,179.63,39.68]
[1753980918517,15.17330074,179.64,179.63,39.68]
[1753980919020,15.85330074,179.64,179.62,39.66]
[1753980919196,10.28661181,179.63,179.62,39.66]
[1753980920233,24.17002056,179.63,179.62,39.66]
[1753980920906,27.86583907,179.63,179.62,39.66]
[1753980921122,44.65052304,179.63,179.62,39.66]
[1753980922805,44.65052304,179.63,179.59,88.06]
[1753980923011,4.42061544,179.62,179.6,39.66]
[1753980923714,4.42061544,179.62,179.59,88.06]
[1753980924027,5.56761872,179.61,179.6,39.66]
[1753980924320,15.1294336,179.61,179.6,88.0]
[1753980924723,15.1294336,179.61,179.6,127.66]
[1753980925320,18.87510132,179.61,179.6,127.66]
[1753980925632,18.87504015,179.61,179.6,127.66]
[1753980925803,15.1294336,179.61,179.6,127.66]
[1753980926130,18.87504015,179.61,179.6,127.66]
[1753980926351,3.74560655,179.61,179.6,128.32]
[1753980926504,15.12916755,179.62,179.6,128.32]
[1753980926701,9.56181488,179.61,179.6,127.66]
[1753980928202,15.1294336,179.61,179.6,127.66]
[1753980929010,15.1294336,179.61,179.6,127.72]
[1753980929327,15.1294336,179.61,179.6,88.06]
[1753980929532,15.8094336,179.61,179.6,127.72]
[1753980930105,15.1294336,179.61,179.6,127.72]
[1753980930799,31.91411757,179.61,179.6,127.72]
[1753980931041,35.65972155,179.61,179.6,127.72]
[1753980932334,36.33972155,179.61,179.6,127.72]
[1753980932532,36.33972155,179.61,179.6,39.72]
[1753980933233,9.3132227,179.61,179.6,39.72]
[1753980933418,9.59181488,179.64,179.6,40.38]
[1753980933728,3.745958,179.63,179.61,0.66]
[1753980933929,3.745958,179.63,179.62,39.66]
[1753980934139,39.30777288,179.63,179.62,39.66]
[1753980934740,3.745958,179.63,179.62,40.37]
[1753980934914,0.03,179.64,179.62,128.37]
[1753980935116,3.77599106,179.64,179.63,0.71]
[1753980935630,5.59668893,179.64,179.63,0.71]